bitfinex-derivatives/quotes_BTCF0:USTF0_20240815
["timestamp","ask_amount","ask_price","bid_price","bid_amount"]
[1723684023854,0.084937,58853.0,58852.0,0.05068076]
[1723684024054,0.084937,58853.0,58849.0,0.06751152]
[1723684024055,0.084941,58851.0,58849.0,0.06751152]
[1723684024251,0.08507274,58850.0,58848.0,0.05069258]
[1723684024465,0.00013174,58850.0,58849.0,0.13563558]
[1723684024656,0.00013174,58850.0,58849.0,0.084943]
[1723684025147,0.00013174,58850.0,58849.0,0.13558483]
[1723684025954,0.00013174,58850.0,58849.0,0.084943]
[1723684026264,0.00025485,58855.0,58849.0,1.48120183]
[1723684026462,0.00025485,58855.0,58854.0,0.70183622]
[1723684026756,0.00025485,58855.0,58854.0,0.811235]
[1723684026967,0.3216,58863.0,58862.0,0.084924]
[1723684027159,0.4116,58863.0,58862.0,0.445724]
[1723684027457,5.431e-05,58863.0,58862.0,0.615724]
[1723684027758,0.0022,58869.0,58862.0,1.44048]
[1723684028053,0.3887,58881.0,58868.0,0.3608]
[1723684028054,0.00025485,58871.0,58868.0,0.3608]
[1723684028265,0.00025485,58871.0,58870.0,0.2055]
[1723684028458,0.00025485,58871.0,58870.0,0.3455]
[1723684028647,0.00025485,58871.0,58870.0,0.430412]
[1723684030460,0.08025485,58871.0,58870.0,0.430412]
[1723684030961,0.08025485,58871.0,58870.0,0.224912]
[1723684032863,0.08025485,58871.0,58870.0,0.14]
[1723684033163,0.08025485,58871.0,58868.0,0.36168]
[1723684033461,0.08025485,58871.0,58868.0,0.3608]
[1723684034056,0.08025485,58871.0,58870.0,0.084912]
[1723684034257,0.08025485,58871.0,58870.0,0.224912]
[1723684039056,0.16516585,58871.0,58870.0,0.224912]
[1723684039262,0.16516585,58871.0,58870.0,0.585712]
[1723684039654,0.16516585,58871.0,58870.0,0.445712]
[1723684040169,0.16516585,58871.0,58870.0,0.3608]
[1723684040467,0.16516585,58871.0,58862.0,0.36885651]
[1723684040468,0.084922,58863.0,58862.0,0.05058239]
[1723684040653,0.234922,58863.0,58862.0,0.16]
[1723684040856,0.084926,58860.0,58859.0,0.00025485]
[1723684041165,0.084915,58868.0,58860.0,0.50968]
[1723684041358,0.084917,58867.0,58860.0,0.17]
[1723684041668,0.234917,58867.0,58865.0,0.084919]
[1723684041862,0.234917,58867.0,58866.0,0.084918]
[1723684042161,0.234917,58867.0,58866.0,0.224918]
[1723684043659,0.15,58867.0,58866.0,0.224918]
[1723684048763,0.15,58867.0,58866.0,1.134558]
[1723684048959,0.00025485,58871.0,58870.0,0.084912]
[1723684049161,0.16025485,58871.0,58870.0,0.87872175]
[1723684049356,0.16025485,58871.0,58870.0,0.811212]
[1723684051969,0.16025485,58871.0,58870.0,0.450412]
[1723684052167,0.16025485,58871.0,58870.0,0.811212]
[1723684055270,0.16025485,58871.0,58870.0,1.02510435]
[1723684055972,0.16025485,58871.0,58870.0,0.66430435]
[1723684056170,0.16025485,58871.0,58870.0,0.94058223]
[1723684058374,0.16025485,58871.0,58870.0,0.94855932]
[1723684060264,0.16025485,58871.0,58870.0,1.04998586]
[1723684060568,0.1032,58871.0,58870.0,2.05313265]
[1723684060770,0.1032,58871.0,58870.0,2.1817819]
[1723684060969,0.0668,58886.0,58885.0,0.08489]
[1723684061173,0.2368,58886.0,58885.0,0.87571721]
[1723684061365,0.2368,58886.0,58885.0,0.92052748]
[1723684062668,0.2368,58886.0,58885.0,1.00499671]
[1723684063373,0.2368,58886.0,58885.0,0.79119]
[1723684063566,0.2368,58886.0,58885.0,1.00499206]
[1723684063879,0.2368,58886.0,58885.0,0.87565923]
[1723684064173,0.17,58886.0,58885.0,0.79119]
[1723684064469,0.17,58886.0,58885.0,1.78556]
[1723684064678,0.00025485,58891.0,58890.0,0.084883]
[1723684064875,0.00025485,58891.0,58890.0,0.811183]
[1723684065376,0.10025485,58891.0,58890.0,0.811183]
[1723684065962,0.10025485,58891.0,58890.0,0.605683]
[1723684067266,0.10025485,58891.0,58890.0,0.67309326]
[1723684069369,0.10025485,58891.0,58890.0,0.605683]
[1723684070667,0.10025485,58891.0,58890.0,0.244883]
[1723684070867,0.10025485,58891.0,58890.0,0.605683]
[1723684072170,0.10025485,58891.0,58890.0,0.811183]
[1723684072467,0.10025485,58891.0,58890.0,0.896066]
[1723684072666,0.10025485,58891.0,58890.0,1.405506]
[1723684073982,0.10025485,58891.0,58890.0,1.320623]
[1723684074473,0.10025485,58891.0,58890.0,0.811183]
[1723684074678,0.10025485,58891.0,58890.0,1.320623]
[1723684075386,0.10025485,58891.0,58890.0,1.720623]
[1723684075883,0.00025485,58891.0,58890.0,1.805506]
[1723684076080,0.3216,58904.0,58898.0,0.084872]
[1723684076282,0.0702,58909.0,58908.0,0.084857]
[1723684076579,0.2402,58909.0,58908.0,0.605657]
[1723684076884,0.1602,58909.0,58908.0,0.605657]
[1723684078585,0.1702,58909.0,58908.0,0.605657]
[1723684089596,0.1702,58909.0,58908.0,0.67305133]
[1723684090192,0.1702,58909.0,58908.0,0.605657]
[1723684092096,0.00025463,58914.0,58908.0,1.405294]
[1723684092292,0.00025463,58914.0,58913.0,0.736]
[1723684092498,0.00025463,58914.0,58913.0,0.81115]
[1723684092698,0.00025463,58914.0,58913.0,0.98014588]
[1723684093000,0.1285,58924.0,58923.0,0.084836]
[1723684093301,0.1285,58924.0,58923.0,0.811136]
[1723684093606,0.2085,58924.0,58923.0,0.86169711]
[1723684094604,0.0675,58924.0,58923.0,1.23933822]
[1723684097213,0.0675,58924.0,58923.0,1.24751998]
[1723684098423,0.2375,58924.0,58923.0,1.24751998]
[1723684098607,0.322334,58924.0,58923.0,0.8816]
[1723684098912,0.084837,58922.0,58920.0,0.084839]
[1723684099118,0.17,58922.0,58921.0,0.084839]
[1723684099313,0.17,58922.0,58921.0,0.254839]
[1723684099613,0.254837,58922.0,58921.0,0.17]
[1723684100918,0.254837,58922.0,58921.0,0.254839]
[1723684101119,0.26308254,58922.0,58921.0,0.254839]
[1723684101715,0.17824554,58922.0,58921.0,0.30534972]
[1723684102014,0.17824554,58922.0,58921.0,0.254839]
[1723684102612,0.17824554,58922.0,58921.0,0.32224122]
[1723684105015,0.17,58922.0,58921.0,0.32224122]
[1723684105205,0.17,58922.0,58921.0,0.254839]
[1723684106918,0.17,58922.0,58921.0,0.46833946]
[1723684107115,0.17,58922.0,58921.0,0.254839]
[1723684107307,0.17,58922.0,58921.0,0.38408522]
[1723684108012,0.17,58922.0,58921.0,0.39219325]
[1723684108415,0.17,58922.0,58921.0,0.4765779]
[1723684108712,0.17,58922.0,58921.0,0.26294703]
[1723684108918,0.17,58922.0,58921.0,0.98454703]
[1723684109421,0.17,58922.0,58921.0,1.05206404]
[1723684109922,0.17,58922.0,58921.0,0.98454703]
[1723684114814,0.17,58922.0,58921.0,0.8916]
[1723684115021,0.17,58922.0,58921.0,0.95915323]
[1723684115221,0.254837,58922.0,58921.0,0.8916]
[1723684115914,0.254837,58922.0,58921.0,0.5308]
[1723684115915,1.333671,58922.0,58921.0,0.5308]
[1723684116125,0.08484,58920.0,58919.0,0.05069714]
[1723684116422,0.25484,58920.0,58919.0,0.21069714]
[1723684118523,0.25484,58920.0,58919.0,0.16]
[1723684118721,0.84884,58920.0,58919.0,0.16]
[1723684118924,0.84884,58920.0,58918.0,0.0509719]
[1723684118925,0.169682,58919.0,58918.0,0.0509719]
[1723684119128,0.339682,58919.0,58918.0,0.14025463]
[1723684119322,1.248842,58919.0,58918.0,0.00025463]
[1723684120327,1.333683,58919.0,58918.0,0.00025463]
[1723684120719,1.333683,58919.0,58904.0,0.3608]
[1723684120720,0.5092,58918.0,58905.0,0.08438465]
[1723684120914,0.084859,58907.0,58905.0,0.0507383]
[1723684121223,0.11499818,58906.0,58896.0,0.37475865]
[1723684121416,0.2342,58906.0,58903.0,0.05074732]
[1723684121617,0.084867,58901.0,58900.0,0.05074732]
[1723684121820,0.084867,58901.0,58890.0,0.10150862]
[1723684121821,0.084869,58900.0,58899.0,0.05074732]
[1723684122019,0.288669,58900.0,58899.0,0.00025463]
[1723684122221,0.798029,58900.0,58899.0,0.05100195]
[1723684122415,0.288669,58900.0,58899.0,0.05100195]
[1723684122615,0.288669,58900.0,58899.0,0.00025463]
[1723684123027,0.288669,58900.0,58899.0,0.05100195]
[1723684123626,0.14,58900.0,58899.0,0.00025463]
[1723684123833,0.14,58900.0,58899.0,0.24512463]
[1723684124822,0.14,58900.0,58899.0,0.60592463]
[1723684126820,0.224869,58900.0,58899.0,0.52105463]
[1723684127430,0.309738,58900.0,58899.0,0.00025463]
[1723684127929,1.219098,58900.0,58899.0,0.00025463]
[1723684128736,1.219098,58900.0,58887.0,0.05060523]
[1723684128737,0.084877,58894.0,58887.0,0.05060523]
[1723684129035,0.084877,58894.0,58887.0,0.22060523]
[1723684129036,0.084886,58888.0,58887.0,0.22060523]
[1723684129232,0.164886,58888.0,58887.0,0.22060523]
[1723684129424,0.164886,58888.0,58887.0,0.17]
[1723684129841,0.164886,58888.0,58886.0,0.05060523]
[1723684129842,0.084888,58887.0,58886.0,0.05060523]
[1723684130041,0.174888,58887.0,58886.0,0.05060523]
[1723684130431,0.174888,58887.0,58886.0,0.22060523]
[1723684130738,0.174888,58887.0,58886.0,0.17]
[1723684131130,0.09,58887.0,58886.0,0.30549423]
[1723684131634,0.09,58887.0,58886.0,0.254889]
[1723684132034,0.0724,58892.0,58891.0,0.084882]
[1723684132340,0.00025463,58893.0,58892.0,0.08488]
[1723684132542,0.00025463,58893.0,58892.0,0.22488]
[1723684132934,0.10025463,58893.0,58892.0,0.22488]
[1723684134747,0.00025463,58893.0,58892.0,0.22488]
[1723684135045,0.3608,58901.0,58899.0,0.08487]
[1723684135344,0.5308,58901.0,58899.0,0.43037]
[1723684136137,0.17,58901.0,58899.0,0.79117]
[1723684137443,0.17,58901.0,58899.0,0.43037]
[1723684138045,0.084869,58900.0,58899.0,0.3455]
[1723684138242,0.254869,58900.0,58899.0,0.14]
[1723684142255,0.17,58900.0,58899.0,0.22487]
[1723684143048,0.254869,58900.0,58899.0,0.22487]
[1723684143347,0.254869,58900.0,58899.0,0.27547523]
[1723684143549,0.254869,58900.0,58899.0,0.22487]
[1723684146043,0.254869,58900.0,58899.0,0.14]
[1723684147549,0.17,58900.0,58899.0,0.22487]
[1723684147960,0.36805463,58906.0,58905.0,0.084862]
[1723684147961,0.00025463,58906.0,58905.0,0.084862]
[1723684148153,0.17025463,58906.0,58905.0,0.244862]
[1723684148952,0.0677,58912.0,58911.0,0.084853]
[1723684149154,0.2377,58912.0,58911.0,0.16]
[1723684149456,0.2377,58912.0,58907.0,0.08453984]
[1723684149758,0.2377,58912.0,58907.0,0.23453984]
[1723684150166,0.2377,58912.0,58907.0,0.31939684]
[1723684150361,0.00025463,58915.0,58911.0,0.2055]
[1723684150566,0.00025463,58915.0,58913.0,0.08453984]
[1723684150880,0.05079818,58925.0,58918.0,0.084842]
[1723684151071,0.16,58925.0,58920.0,0.5663]
[1723684151248,0.16,58925.0,58920.0,0.80078303]
[1723684151451,0.16,58925.0,58921.0,0.084839]
[1723684151659,0.16,58925.0,58921.0,0.234839]
[1723684153560,0.16,58925.0,58923.0,0.0505796]
[1723684153757,0.16,58925.0,58923.0,0.2205796]
[1723684154449,0.16,58925.0,58923.0,0.17]
[1723684155560,0.16,58925.0,58924.0,0.084834]
[1723684155753,0.16,58925.0,58924.0,0.254834]
[1723684160565,0.16,58925.0,58924.0,0.17]
[1723684161558,0.16,58925.0,58920.0,0.44668]
[1723684161761,0.3608,58924.0,58920.0,0.16]
[1723684161963,0.5108,58924.0,58920.0,0.16]
[1723684162263,0.50916,58923.0,58912.0,0.0505796]
[1723684162571,0.084846,58916.0,58913.0,0.5308]
[1723684162870,0.1317,58915.0,58913.0,0.5308]
[1723684163058,0.2717,58915.0,58913.0,0.5308]
[1723684164267,0.084849,58914.0,58913.0,0.5308]
[1723684164468,0.084852,58912.0,58911.0,0.0505796]
[1723684164669,0.084857,58908.0,58907.0,0.00025463]
[1723684164871,0.244857,58908.0,58907.0,0.00025463]
[1723684166370,0.16,58908.0,58907.0,0.05083423]
[1723684166765,0.1682649,58908.0,58907.0,0.05083423]
[1723684167065,0.1682649,58908.0,58907.0,0.00025463]
[1723684167273,0.1682649,58908.0,58907.0,0.08511363]
[1723684169273,0.16,58908.0,58907.0,0.22511363]
[1723684172367,0.16,58908.0,58907.0,0.14025463]
[1723684172769,0.244857,58908.0,58907.0,0.14025463]
[1723684173369,0.16,58908.0,58907.0,0.14025463]
[1723684173976,0.16,58908.0,58907.0,0.05089369]
[1723684174279,0.754137,58908.0,58907.0,0.00025463]
[1723684174468,0.08486,58906.0,58905.0,0.05063906]
[1723684174673,0.16,58906.0,58902.0,0.05063906]
[1723684174880,0.084866,58902.0,58901.0,0.05063906]
[1723684175078,0.084866,58902.0,58901.0,0.17]
[1723684175079,0.234866,58902.0,58901.0,0.17]
[1723684175595,0.15,58902.0,58901.0,0.26328178]
[1723684175783,0.15,58902.0,58901.0,0.254867]
[1723684179390,0.15,58902.0,58901.0,0.34796943]
[1723684179594,0.15,58902.0,58901.0,0.39277684]
[1723684179789,0.15,58902.0,58901.0,0.51361801]
[1723684180196,0.15,58902.0,58901.0,0.42917684]
[1723684180891,0.01,58908.0,58905.0,0.08486]
[1723684181085,0.17,58908.0,58906.0,0.3608]
[1723684181286,0.17,58908.0,58906.0,0.56834763]
[1723684181485,0.17,58908.0,58906.0,0.65320663]
[1723684183294,0.17,58908.0,58907.0,0.084859]
[1723684183602,0.17,58908.0,58907.0,0.244859]
[1723684184116,0.10250926,58908.0,58907.0,0.37414089]
[1723684184390,0.05079818,58923.0,58912.0,0.084852]
[1723684184391,0.149236,58923.0,58912.0,0.084852]
[1723684184596,0.00843956,58922.0,58912.0,0.94043389]
[1723684184799,0.00843956,58922.0,58912.0,1.44967389]
[1723684184994,0.0644,58923.0,58912.0,1.84967389]
[1723684185695,0.0644,58923.0,58912.0,1.98609611]
[1723684185893,0.0644,58923.0,58912.0,1.84967389]
[1723684186491,0.0693,58925.0,58912.0,1.84967389]
[1723684187093,0.0644,58929.0,58924.0,0.084834]
[1723684187299,0.2244,58929.0,58927.0,0.05061838]
[1723684187497,0.2244,58929.0,58927.0,0.19061838]
[1723684187689,0.2244,58929.0,58928.0,0.05061838]
[1723684187890,0.2244,58929.0,58928.0,0.19061838]
[1723684188597,0.23288566,58929.0,58928.0,0.19061838]
[1723684188797,0.23288566,58929.0,58927.0,0.05061838]
[1723684188991,0.23288566,58929.0,58927.0,0.21061838]
[1723684190093,0.23288566,58929.0,58924.0,0.05061838]
[1723684190290,0.23288566,58929.0,58924.0,0.21061838]
[1723684190291,0.084832,58926.0,58924.0,0.21061838]
[1723684190492,0.244832,58926.0,58924.0,0.22749118]
[1723684191588,0.244832,58926.0,58924.0,0.16]
[1723684191985,0.244832,58926.0,58925.0,0.05061018]
[1723684192188,0.244832,58926.0,58925.0,0.19061018]
[1723684192389,0.244832,58926.0,58925.0,0.14]
[1723684192585,0.605632,58926.0,58925.0,0.14]
[1723684192802,0.244832,58926.0,58925.0,0.14]
[1723684193493,0.605632,58926.0,58925.0,0.14]
[1723684196197,0.084834,58924.0,58923.0,0.00025463]
[1723684196506,0.254834,58924.0,58923.0,0.00025463]
[1723684196700,1.163954,58924.0,58923.0,0.00025463]
[1723684196898,0.763954,58924.0,58923.0,0.00025463]
[1723684197197,1.163954,58924.0,58923.0,0.00025463]
[1723684198099,0.763954,58924.0,58923.0,0.00025463]
[1723684198295,1.163954,58924.0,58923.0,0.00025463]
[1723684199399,1.248788,58924.0,58923.0,0.00025463]
[1723684199604,1.28462,58924.0,58914.0,0.05061018]
[1723684199800,0.3608,58916.0,58913.0,0.05061018]
[1723684200005,0.0701,58915.0,58912.0,0.05061018]
[1723684200304,0.08485,58913.0,58912.0,0.05061018]
[1723684200495,0.084851,58912.0,58909.0,0.05061018]
[1723684200700,0.084851,58912.0,58907.0,0.28086481]
[1723684200701,0.084857,58908.0,58907.0,0.28086481]
[1723684200897,0.254857,58908.0,58907.0,0.20089378]
[1723684201210,0.17,58908.0,58907.0,0.21774581]
[1723684201402,0.17,58908.0,58907.0,0.21776758]
[1723684202806,0.17,58908.0,58907.0,0.21775879]
[1723684203209,0.171,58908.0,58907.0,0.21775879]
[1723684203409,0.171,58908.0,58907.0,0.30261779]
[1723684203612,0.171,58908.0,58907.0,0.23511363]
[1723684203801,0.171,58908.0,58907.0,0.30261678]
[1723684204311,0.171,58908.0,58907.0,0.23511363]
[1723684204615,0.171,58908.0,58907.0,0.24381982]
[1723684206811,0.171,58908.0,58907.0,0.23511363]
[1723684207009,0.171,58908.0,58907.0,0.15025463]
[1723684209209,0.171,58908.0,58907.0,0.23511363]
[1723684210807,0.171,58908.0,58907.0,0.44875835]
[1723684211008,0.171,58908.0,58907.0,0.44884112]
[1723684211213,0.171,58908.0,58907.0,0.4488473]
[1723684211414,0.171,58908.0,58907.0,0.36439438]
[1723684213106,0.17074537,58908.0,58907.0,1.35853338]
[1723684213309,0.001,58908.0,58907.0,1.41103278]
[1723684213607,0.001,58908.0,58907.0,1.40970144]
[1723684214008,0.001,58908.0,58907.0,1.55754006]
[1723684214213,0.001,58908.0,58907.0,1.40970144]
[1723684215714,0.001,58908.0,58907.0,1.55753933]
[1723684217622,0.001,58908.0,58907.0,1.40970144]
[1723684217819,0.001,58908.0,58907.0,0.8736613]
[1723684218117,0.001,58908.0,58907.0,1.37506149]
[1723684218421,0.001,58908.0,58907.0,1.42149951]
[1723684218606,0.001,58908.0,58907.0,1.02149696]
[1723684218808,0.001,58908.0,58907.0,1.02149671]
[1723684219004,0.001,58908.0,58907.0,1.375075]
[1723684219209,0.001,58908.0,58907.0,1.27365875]
[1723684219615,0.081,58908.0,58907.0,0.46581428]
[1723684219920,0.081,58908.0,58907.0,0.36437875]
[1723684223906,0.081,58908.0,58907.0,0.27951975]
[1723684224113,0.165857,58908.0,58907.0,0.27951975]
[1723684224812,0.165857,58908.0,58907.0,0.38107907]
[1723684225224,0.165857,58908.0,58907.0,0.27951975]
[1723684229817,0.165857,58908.0,58907.0,0.64031975]
[1723684230023,0.165857,58908.0,58907.0,0.27951975]
[1723684230220,0.99883657,58908.0,58904.0,0.08460493]
[1723684230421,0.084866,58902.0,58901.0,0.08460493]
[1723684230719,0.5208,58902.0,58901.0,0.15]
[1723684232215,0.605666,58902.0,58901.0,0.15]
[1723684232410,0.606666,58902.0,58901.0,0.15]
[1723684232710,0.606666,58902.0,58901.0,0.21765853]
[1723684232919,0.606666,58902.0,58901.0,0.15]
[1723684234122,0.5218,58902.0,58901.0,0.440367]
[1723684234620,0.001,58902.0,58901.0,1.47897576]
[1723684235017,0.001,58902.0,58901.0,1.58053508]
[1723684235219,0.0735,58912.0,58911.0,0.084853]
[1723684235417,0.2235,58912.0,58911.0,0.52794612]
[1723684235721,0.308351,58912.0,58911.0,0.23759312]
[1723684236023,0.308351,58912.0,58911.0,0.22069962]
[1723684236214,0.308351,58912.0,58911.0,0.22070196]
[1723684237019,1.217591,58912.0,58911.0,0.17]
[1723684237216,0.2235,58912.0,58911.0,0.17]
[1723684238218,0.308351,58912.0,58911.0,0.17]
[1723684238919,0.35907735,58912.0,58911.0,0.17]
[1723684239220,1.302442,58912.0,58911.0,0.0507061]
[1723684240313,0.084853,58911.0,58910.0,0.0507061]
[1723684240517,0.084858,58908.0,58907.0,0.06759312]
[1723684240822,0.15,58908.0,58907.0,0.254859]
[1723684242016,0.234857,58908.0,58907.0,0.17]
[1723684242925,0.151,58908.0,58907.0,0.254859]
[1723684243422,0.151,58908.0,58907.0,0.32246822]
[1723684243617,0.151,58908.0,58907.0,0.254859]
[1723684244023,0.151,58908.0,58907.0,0.32246822]
[1723684245025,0.151,58908.0,58907.0,0.23762407]
[1723684245430,0.151,58908.0,58907.0,0.06762407]
[1723684245640,0.235857,58908.0,58907.0,0.06762407]
[1723684246539,0.235857,58908.0,58907.0,0.15]
[1723684246918,0.235857,58908.0,58907.0,0.21764]
[1723684247122,0.235857,58908.0,58907.0,0.15]
[1723684248935,0.084859,58907.0,58906.0,0.05074818]
[1723684249123,0.08486,58906.0,58904.0,0.05074818]
[1723684249323,0.084861,58905.0,58904.0,0.05074818]
[1723684249536,0.244861,58905.0,58904.0,0.05074818]
[1723684250229,0.21082822,58905.0,58900.0,0.06765161]
[1723684250435,0.21082822,58905.0,58903.0,0.05075739]
[1723684250630,0.530526,58904.0,58903.0,0.17]
[1723684250831,0.169746,58897.0,58896.0,0.06790624]
[1723684251135,0.169746,58897.0,58892.0,0.06770007]
[1723684251136,0.084879,58893.0,58892.0,0.06770007]
[1723684251325,0.17,58893.0,58891.0,0.06770007]
[1723684251521,0.084883,58890.0,58889.0,0.06770007]
[1723684251725,0.5308,58890.0,58887.0,0.06770007]
[1723684251932,0.084889,58886.0,58884.0,0.08448841]
[1723684252128,0.254889,58886.0,58884.0,0.15]
[1723684253137,0.254889,58886.0,58885.0,0.06763675]
[1723684253338,0.254889,58886.0,58885.0,0.22763675]
[1723684254228,0.255889,58886.0,58885.0,0.31252675]
[1723684254725,0.255889,58886.0,58885.0,0.24489]
[1723684254932,0.255889,58886.0,58885.0,0.24689]
[1723684255738,0.255889,58886.0,58885.0,0.31450554]
[1723684255938,0.171,58886.0,58885.0,0.67530554]
[1723684256138,0.171,58886.0,58885.0,0.24689]
[1723684256438,0.171,58886.0,58885.0,0.31450554]
[1723684257041,0.171,58886.0,58885.0,0.24689]
[1723684257343,0.171,58886.0,58885.0,0.31443798]
[1723684257732,0.171,58886.0,58885.0,0.24689]
[1723684258140,0.171,58886.0,58885.0,0.31441517]
[1723684259135,0.171,58886.0,58885.0,0.162]
[1723684261344,0.26476992,58886.0,58885.0,0.162]
[1723684267358,0.62556992,58886.0,58885.0,0.162]
[1723684267538,0.71045892,58886.0,58885.0,0.162]
[1723684267744,0.71045892,58886.0,58885.0,0.002]
[1723684267745,1.21993892,58886.0,58885.0,0.002]
[1723684267947,0.62556992,58886.0,58885.0,0.162]
[1723684268645,0.084892,58884.0,58883.0,0.00025463]
[1723684268943,0.084892,58884.0,58870.0,0.06752517]
[1723684268944,0.08491,58872.0,58870.0,0.06752517]
[1723684269139,0.3608,58871.0,58870.0,0.15]
[1723684269449,0.5208,58871.0,58870.0,0.234912]
[1723684270440,0.60571,58871.0,58870.0,0.15]
[1723684270639,0.084912,58870.0,58869.0,0.00013917]
[1723684270947,0.386412,58870.0,58869.0,0.15013917]
[1723684271157,0.471324,58870.0,58869.0,0.00013917]
[1723684271444,0.471324,58870.0,58865.0,0.00025463]
[1723684271445,0.084918,58866.0,58865.0,0.00025463]
[1723684271634,0.595718,58866.0,58865.0,0.14025463]
[1723684272442,0.59585717,58866.0,58865.0,0.14025463]
[1723684273941,0.59685717,58866.0,58865.0,0.14025463]
[1723684274444,0.60550497,58866.0,58865.0,0.14025463]
[1723684281242,0.69042297,58866.0,58865.0,0.14025463]
[1723684281544,0.084936,58853.0,58850.0,0.42832517]
[1723684281752,0.254936,58853.0,58850.0,0.16]
[1723684281951,0.161638,58852.0,58850.0,0.16]
[1723684282160,0.321638,58852.0,58850.0,0.16]
[1723684282349,0.084939,58851.0,58850.0,0.16]
[1723684282684,0.084939,58851.0,58845.0,0.3608]
[1723684282685,0.084947,58846.0,58845.0,0.3608]
[1723684282845,0.084952,58842.0,58840.0,0.00020542]
[1723684283039,0.445754,58841.0,58840.0,0.00020542]
[1723684283255,0.605754,58841.0,58840.0,0.00020542]
[1723684285049,0.606754,58841.0,58840.0,0.00020542]
[1723684289058,0.245954,58841.0,58840.0,0.00020542]
[1723684290858,0.25464479,58841.0,58840.0,0.00020542]
[1723684291254,0.16969079,58841.0,58840.0,0.25516042]
[1723684291455,0.161,58841.0,58840.0,0.25516042]
[1723684296659,0.161,58841.0,58840.0,0.36876042]
[1723684297368,0.161,58841.0,58840.0,0.43628559]
[1723684298364,0.161,58841.0,58840.0,0.36876042]
[1723684298565,0.161,58841.0,58840.0,0.87860042]
[1723684298768,0.08493,58858.0,58841.0,0.594793]
[1723684298962,0.15,58856.0,58852.0,0.3608]
[1723684299264,0.15,58856.0,58852.0,0.605738]
[1723684299265,0.15894874,58856.0,58852.0,0.605738]
[1723684299466,0.24388074,58856.0,58852.0,0.605738]
[1723684299969,0.24488074,58856.0,58852.0,0.605738]
[1723684300158,0.084934,58855.0,58852.0,0.605738]
[1723684300358,0.084936,58853.0,58852.0,0.5208]
[1723684300562,0.084938,58852.0,58846.0,0.06752528]
[1723684300763,0.234938,58852.0,58846.0,0.15]
[1723684300977,0.3608,58850.0,58846.0,0.15]
[1723684301169,0.5108,58850.0,58846.0,0.15]
[1723684301383,0.5108,58850.0,58846.0,0.234946]
[1723684301677,0.5108,58850.0,58847.0,0.084944]
[1723684301863,0.5108,58850.0,58847.0,0.23752528]
[1723684302261,0.5108,58850.0,58849.0,0.084942]
[1723684302459,0.5108,58850.0,58849.0,0.254942]
[1723684303271,0.5108,58850.0,58849.0,0.32246728]
[1723684303868,0.5118,58850.0,58849.0,0.32446728]
[1723684305269,0.151,58850.0,58849.0,0.256942]
[1723684306077,0.151,58850.0,58849.0,0.26566584]
[1723684308278,0.151,58850.0,58849.0,0.35007244]
[1723684308872,0.151,58850.0,58849.0,0.71087244]
[1723684309275,0.151,58850.0,58849.0,0.84027884]
[1723684310278,0.151,58850.0,58849.0,0.7471484]
[1723684311676,0.151,58850.0,58849.0,0.3415898]
[1723684311982,0.151,58850.0,58849.0,0.256942]
[1723684312680,0.151,58850.0,58849.0,0.3415898]
[1723684313074,0.151,58850.0,58849.0,0.256942]
[1723684313276,0.151,58850.0,58849.0,0.172]
[1723684313479,0.596741,58850.0,58849.0,0.172]
[1723684314480,0.60567734,58850.0,58849.0,0.002]
[1723684314685,0.69061834,58850.0,58849.0,0.002]
[1723684315479,0.76551834,58850.0,58849.0,0.002]
[1723684316081,0.81633708,58850.0,58849.0,0.002]
[1723684316281,0.084952,58842.0,58841.0,0.06772855]
[1723684316580,0.595752,58842.0,58841.0,0.17]
[1723684317475,0.596752,58842.0,58841.0,0.171]
[1723684320188,0.681704,58842.0,58841.0,0.171]
[1723684320782,0.69086888,58842.0,58841.0,0.171]
[1723684321486,1.20070888,58842.0,58841.0,0.001]
[1723684321683,0.084954,58841.0,58837.0,0.06772855]
[1723684321879,0.664354,58841.0,58836.0,0.06772855]
[1723684322081,0.084961,58836.0,58835.0,0.06772855]
[1723684322285,0.595761,58836.0,58835.0,0.20772855]
[1723684322480,0.595761,58836.0,58835.0,0.14]
[1723684322680,0.595761,58836.0,58833.0,0.06777453]
[1723684322880,0.2055,58834.0,58829.0,0.06777453]
[1723684323087,0.084972,58828.0,58827.0,0.06777453]
[1723684323280,0.15,58828.0,58824.0,0.06777453]
[1723684323482,0.15,58828.0,58817.0,0.084988]
[1723684323483,0.084978,58824.0,58823.0,0.06777453]
[1723684323684,0.254978,58824.0,58823.0,0.12]
[1723684324382,1.164978,58824.0,58816.0,0.06777453]
[1723684324582,0.084987,58818.0,58816.0,0.16]
[1723684324783,0.1,58818.0,58816.0,0.22777453]
[1723684324982,0.1,58818.0,58817.0,0.084988]
[1723684325186,0.1,58818.0,58817.0,0.244988]
[1723684326890,0.001,58824.0,58823.0,0.08498]
[1723684327193,0.519267,58832.0,58826.0,0.084974]
[1723684327492,0.15025485,58829.0,58827.0,0.084974]
[1723684327785,0.15025485,58829.0,58828.0,0.084972]
[1723684327988,0.00012215,58833.0,58832.0,0.084967]
[1723684328182,0.15012215,58833.0,58832.0,0.224967]
[1723684329684,0.15112215,58833.0,58832.0,0.224967]
[1723684330481,0.00112215,58833.0,58832.0,0.224967]
[1723684330682,0.09112215,58833.0,58832.0,0.224967]
[1723684332388,0.09112215,58833.0,58832.0,0.14]
[1723684332990,0.09112215,58833.0,58827.0,0.00025485]
[1723684333181,0.09112215,58833.0,58827.0,0.15025485]
[1723684333389,0.084971,58830.0,58827.0,0.15025485]
[1723684333688,0.254971,58830.0,58827.0,0.15025485]
[1723684334293,0.254971,58830.0,58827.0,0.23522785]
[1723684335293,0.255971,58830.0,58827.0,0.23522785]
[1723684335992,0.254971,58830.0,58827.0,0.23522785]